Cogmind - Beta 15 @@@ ROGUE MODE // 2025.06.16 @ 22:54:31 Player: puppuppit Result: Destroyed by D-53 Grenadier with Mini Grenade Launcher Performance ------------- Evolutions (0) 0 Regions Visited (2) 400 Robots Destroyed (43) 215 Value Destroyed (600) 600 Prototype IDs (3) 60 Alien Tech Used (0) 0 Bonus (0) 0 TOTAL SCORE: 1275 Bonus ------- None Cogmind --------- Core Integrity 0/250 Matter 266/300 Energy 39/100 System Corruption 1% Temperature Cool (0) Movement Core (50) Location -10/Mines Parts ------- > --- POWER (1) -------- (None) > --- PROPULSION (2) --- (None) > --- UTILITY (2) ------ Targeting Computer > --- WEAPON (2) ------- (None) > --- INVENTORY (5) ---- Light Treads High-capacity Matter Pod (200) Light Armor Plating Light Cannon Grenade Launcher Peak State ------------ > --- POWER ------------ Ion Engine > --- PROPULSION ------- Light Treads Light Treads > --- UTILITY ---------- Small Storage Unit Improved Terrain Scanner > --- WEAPON ----------- EM Pulse Gun Small Laser > --- INVENTORY -------- (None) [Rating: 9] Favorites ----------- Power Ion Engine Engine Ion Engine Propulsion Light Treads Treads Light Treads Utility Small Storage Unit Device Improved Terrain Scanner Storage Small Storage Unit Processor Targeting Computer Weapon EM Pulse Gun Energy Gun EM Pulse Gun Ballistic Gun Light Assault Rifle Launcher Grenade Launcher Build | -11 -10 -10 ------- Run | Yrd Mat Min Slots Evolved . | . . . Power . | . . . Propulsion . | . . . Utility . | . . . Weapon . | . . . Parts Attached 18 | 7 9 2 Power 1 | 1 . . Engine 1 | 1 . . Core . | . . . Reactor . | . . . Propulsion 3 | 2 1 . Treads 3 | 2 1 . Leg . | . . . Wheel . | . . . Hover . | . . . Flight . | . . . Utility 3 | 2 1 . Device 1 | 1 . . Storage 1 | 1 . . Processor 1 | . 1 . Hackware . | . . . Protection . | . . . Artifact . | . . . Weapon 11 | 2 7 2 Energy Gun 9 | 2 5 2 Energy Cannon . | . . . Ballistic Gun 1 | . 1 . Ballistic Cannon . | . . . Launcher 1 | . 1 . Special Weapon . | . . . Impact Weapon . | . . . Slashing Weapon . | . . . Piercing Weapon . | . . . Special Melee Weapon . | . . . Unidentified Prototypes . | . . . Parts Lost 14 | . 5 9 Power 1 | . . 1 Propulsion 2 | . . 2 Utility 2 | . 1 1 Weapon 9 | . 4 5 Highest Loss Streak 9 | . 2 9 To Critical Strikes . | . . . Average Backups 6 | . 6 7 Power . | . . . Propulsion . | . . 1 Utility . | . . 2 Weapon 4 | . 5 4 Tool/Special . | . . . Unused Backups 8 | . 3 5 Power . | . . . Propulsion 1 | . . 1 Utility 2 | . . 2 Weapon 5 | . 3 2 Tool/Special . | . . . Average Slot Usage (%) 96 | . 96 78 Engine 13 | . 14 7 Treads 27 | . 28 17 Device 2 | . 3 . Storage 14 | . 14 14 Processor 8 | . 8 14 Energy Gun 26 | . 26 21 Peak Build Rating 9 | 9 9 7 Average Rating 7 | 6 7 5 On Entrance 5 | . 9 7 Naked Turns . | . . . Heaviest Build 15 | 14 15 14 Greatest Support 40 | 40 40 40 Greatest Overweight (x) . | . . . Average Overweight (x) . | . . . Largest Inventory Capacity 8 | 8 8 8 Average Capacity 7 | 7 8 7 Most Carried 8 | . 8 8 Average Carried 6 | . 6 6 Final Capacity 8 | 8 8 5 Final Carried 8 | . 8 5 Class Distribution -------------------- 100% | Mutant Dominant Class ---------------- Mutant | -10/Materials Mutant | -10/Mines Resources | -11 -10 -10 ----------- Run | Yrd Mat Min Matter Collected 620 | 270 350 . Remotely . | . . . Salvage Created 1498 | 223 1275 . Parts 79 | 14 65 . Haulers Intercepted 2 | . 2 . Recyclers Shooed 3 | . 3 . Parts Field Recycled . | . . . Retrieved Matter . | . . . Parts Self-Destructed . | . . . Prevented . | . . . Kills | -11 -10 -10 ------- Run | Yrd Mat Min Combat Hostiles Destroyed 16 | . 16 . Guns 9 | . 9 . AOE 7 | . 7 . Classes Destroyed 9 | 3 6 . Worker 6 | 2 4 . Builder 3 | . 3 . Tunneler 6 | 5 1 . Hauler 2 | . 2 . Recycler 5 | 1 4 . Operator 2 | . 2 . Watcher 3 | . 3 . Swarmer 6 | . 6 . Grunt 10 | . 10 . Best Kill Streak 9 | 5 9 . Combat Bots Only 8 | . 8 . Max Kills in Single Turn 3 | 1 3 . Gunslinging . | . . . Exploded 3 | . 3 . Melee . | . . . Uniques/NPCs Destroyed . | . . . Combat | -11 -10 -10 -------- Run | Yrd Mat Min Hostile Shots Fired 60 | . 42 18 Missed 8 | . 8 . Hits 52 | . 34 18 Projectile 52 | . 34 18 AOE 18 | . . 18 Critical Strikes 1 | . 1 . Damage Taken 1302 | . 528 774 Core 263 | . 42 221 Absorbed by Shields . | . . . Core Remaining (%) 100 | 100 . . Volleys Fired 96 | 19 68 9 Largest 2 | 2 2 2 Hottest 80 | 80 80 80 Shots Fired 185 | 36 135 14 Gun 182 | 36 134 12 Cannon . | . . . Launcher 3 | . 1 2 Special . | . . . Kinetic 5 | . 5 . Thermal 17 | 17 . . Explosive 3 | . 1 2 Electromagnetic 160 | 19 129 12 Robot Hit Streak 15 | 6 15 8 Robot Miss Streak 4 | 2 4 2 Penetration Max . | . . . Secondary Targets 1 | . 1 . Max Gunslinging Chain 1 | . 1 . Shots Hit Robots 116 | 20 85 11 Core Hits 61 | 9 45 7 Critical Kills . | . . . Critical Parts Destroyed . | . . . Critical Strikes 2 | . 1 1 Corrupt 2 | . 1 1 Melee Attacks . | . . . Impact . | . . . Slashing . | . . . Piercing . | . . . Sneak Attacks . | . . . Combat Hostiles . | . . . Follow-up Attacks . | . . . Damage Inflicted 1978 | 266 1494 218 Guns 1520 | 266 1157 97 Cannons . | . . . Explosions 458 | . 337 121 Melee . | . . . Ramming . | . . . Kinetic 20 | . 20 . Thermal 407 | 97 261 49 Explosive 148 | . 76 72 Electromagnetic 1403 | 169 1137 97 Impact . | . . . Slashing . | . . . Piercing . | . . . Highest Corruption 1 | . 1 1 Average Corruption 1 | . 1 1 Corruption Purged . | . . . Corruption Blocked . | . . . Effects 10 | . 9 1 Message Errors 4 | . 4 . Matter Fused 5 | . 4 1 Heat Flow Errors 1 | . 1 . Overload Shots . | . . . Overflow Damage 41 | . 41 . Projectiles . | . . . Explosions 41 | . 41 . Melee . | . . . Knockbacks . | . . . Impact . | . . . Kinetic . | . . . Secondary . | . . . Self-Inflicted Damage 157 | . 157 . Shots 5 | . 5 . Rammed . | . . . Targets Rammed . | . . . Kicked . | . . . Crushed . | . . . Highest Temperature 249 | 180 249 50 Average Temperature 70 | 74 72 30 Received Heat Transfer 177 | . 177 . Siege Activations . | . . . Martial Activations . | . . . Shielding Activations . | . . . Robots Disrupted 1 | . 1 . Combat Hostiles 1 | . 1 . Robots Corrupted . | . . . Combat Hostiles . | . . . Parts Fried 6 | . 6 . Impact Corruptions . | . . . Robots Melted . | . . . Combat Hostiles . | . . . Parts Melted . | . . . Heat Transferred 625 | 225 350 50 Parts Sabotaged . | . . . Parts Stolen . | . . . Parts Stripped . | . . . Power Chain Reactions 8 | . 7 1 Alert | -11 -10 -10 ------- Run | Yrd Mat Min Maximum Alert Level 1 | . 1 . Low Security (%) 88 | 100 87 100 Level 1 11 | . 12 . Level 2 . | . . . Level 3 . | . . . Level 4 . | . . . Level 5 . | . . . High Security . | . . . Max Security . | . . . Peak Influence 224 | 20 224 57 Initial 57 | . 9 57 Average 124 | 4 138 31 Influence Increases 698 | 40 651 7 Destroy 0b10 Robot/C 320 | . 320 . Destroy 0b10 Robot/NC 135 | 40 95 . Destroy Leader 70 | . 70 . Successful Hack 38 | . 38 . Select Force Hacks 30 | . 30 . Disable Machine 15 | . 15 . Destroy Structure 45 | . 38 7 Partial Spotted 15 | . 15 . Lose Combat Pursuer 30 | . 30 . Influence Decreases 698 | 25 517 156 Entered New Map 98 | . 6 92 Time Decay 496 | 25 461 10 Lost Part 104 | . 50 54 Squads Dispatched 4 | . 4 . Investigation 2 | . 2 . Extermination . | . . . Reinforcement 2 | . 2 . Assault . | . . . Garrison . | . . . Intercept . | . . . Searches Triggered . | . . . Construction Impeded . | . . . Haulers Reinforced . | . . . Active Scanning Responses . | . . . Cargo Convoy Interrupts . | . . . Stealth | -11 -10 -10 --------- Run | Yrd Mat Min Distress Signals 3 | . 3 . Communications Jammed . | . . . Distress Signals . | . . . Times Spotted 28 | . 26 2 Peak Tracking Total 8 | . 8 2 Tactical Retreats 1 | . 1 . Traps | -11 -10 -10 ------- Run | Yrd Mat Min Traps Triggered 1 | . 1 . Indirectly . | . . . Trap Hack Attempts . | . . . Triggered . | . . . Disarmed . | . . . Reprogrammed . | . . . Reused . | . . . Traps Extracted . | . . . Installed . | . . . Triggered . | . . . Machines | -11 -10 -10 ---------- Run | Yrd Mat Min Machines Disabled 1 | . 1 . Max in Single Turn 1 | . 1 . Machines Repaired . | . . . Machines Dismantled . | . . . Machines Sabotaged . | . . . Overloaded Fab Kills . | . . . Hacking | -11 -10 -10 --------- Run | Yrd Mat Min Machines Accessed 7 | . 7 . Terminals 6 | . 6 . Fabricators . | . . . Repair Stations . | . . . Recycling Units 1 | . 1 . Scanalyzers . | . . . Garrison Access . | . . . Total Hacks 27 | . 27 . Successful 9 | . 9 . Failed 17 | . 17 . Catastrophic 2 | . 2 . Database Lockouts 1 | . 1 . Manual 19 | . 19 . Terminals 25 | . 25 . Fabricators . | . . . Repair Stations . | . . . Recycling Units 2 | . 2 . Scanalyzers . | . . . Garrison Access . | . . . Terminal Hacks 5 | . 5 . Robot Analysis 4 | . 4 . Prototype ID Bank 1 | . 1 . Fabricator Hacks . | . . . Repair Station Hacks . | . . . Recycling Unit Hacks . | . . . Scanalyzer . | . . . Garrison Access Hacks . | . . . Unauthorized Hacks 4 | . 4 . Terminals 3 | . 3 . Botnet 3 | . 3 . Fabricators . | . . . Repair Stations . | . . . Recycling Units 1 | . 1 . Tunnel 1 | . 1 . Scanalyzers . | . . . Garrison Access . | . . . Data Cores Recovered . | . . . Used . | . . . Hacking Detections 7 | . 7 . Full Trace Events 3 | . 3 . Feedback Events 1 | . 1 . Corruption 1 | . 1 . Feedback Blocked . | . . . Robot Schematics Acquired . | . . . Robots Built . | . . . Authchips . | . . . Time . | . . . Total Robot Build Rating . | . . . Part Schematics Acquired . | . . . Parts Built . | . . . Authchips . | . . . Time . | . . . Total Part Build Rating . | . . . Parts Repaired . | . . . Time . | . . . Parts Recycled . | . . . Recycled Matter . | . . . Retrieved Matter . | . . . Retrieved Components . | . . . Parts Scanalyzed . | . . . Part Schematics Acquired . | . . . Parts Damaged . | . . . Bothacking | -11 -10 -10 ------------ Run | Yrd Mat Min Used RIF Installer . | . . . Robots Hacked . | . . . Non-combat . | . . . Combat . | . . . Robot Hacks Applied . | . . . Relay Couplers Released . | . . . Fabnet Peak Effective % . | . . . Robots Rewired . | . . . Allies Hacked . | . . . Hacks Repelled . | . . . Allies | -11 -10 -10 -------- Run | Yrd Mat Min Total Allies . | . . . Largest Group . | . . . Highest-Rated Group . | . . . Highest-Rated Ally . | . . . Total Orders . | . . . Ally Attacks . | . . . Total Damage . | . . . Kills . | . . . Allies Corrupted . | . . . Allies Melted . | . . . Intel | -11 -10 -10 ------- Run | Yrd Mat Min Active Infowar (turns) 376 | 83 293 . Terrain 376 | 83 293 . Robot Analysis Total 4 | . 4 . Derelict Logs Recovered . | . . . Drone Launches . | . . . Drone Recoveries . | . . . Exploration | -11 -10 -10 ------------- Run | Yrd Mat Min Turns Passed 1521 | 135 1354 32 Spaces Moved 751 | 46 701 4 Core 3 | 3 . . Treads 748 | 43 701 4 Legs . | . . . Wheels . | . . . Hover . | . . . Flight . | . . . Fastest Speed 50 | 50 160 160 Average Speed 159 | 152 160 160 Slowest Speed 160 | 160 160 160 Overloaded Moves . | . . . Propulsion Burnouts . | . . . Robots Hopped . | . . . Potential Cave-ins . | . . . Cave-ins Triggered . | . . . Exploration Rate (%) 36 | 4 97 8 Regions Visited 2 Branch Regions 1 Pre-discovered Areas 1 | . 1 . Known Exits Taken . | . . . Unknown Exits Taken 2 | 1 1 . Scrap Searched . | . . . Spaces Dug . | . . . Terrain Destroyed 47 | . 36 11 Melee . | . . . Projectile . | . . . AOE 47 | . 36 11 Terrain Rammed . | . . . Walls Destroyed . | . . . Machines Disabled . | . . . Actions | -11 -10 -10 --------- Run | Yrd Mat Min Total 887 | 71 800 16 Wait . | . . . Move 749 | 45 700 4 Hop . | . . . Pick Up 13 | . 13 . Fast Attach 12 | 7 5 . Attach 5 | . 2 3 Detach 1 | . 1 . Swap 5 | . 5 . Drop 6 | . 6 . Fire 96 | 19 68 9 Melee . | . . . Ram . | . . . Kick . | . . . Crush . | . . . Escape Stasis . | . . . Rewire . | . . . Trap . | . . . Miscellaneous . | . . . Route ------- -11/Scrapyard -10/Materials (discovered 6 exits: [*Mat x3] / [*Min x2] / [*Sub]) -10/Mines History --------- Turn | Location | Event 9 | -11/Scrapyard | Discovered new exit (range 14) 136 | -11/Scrapyard | Entered Materials 219 | -10/Materials | Discovered new exit (range 11) 314 | -10/Materials | Build established: Mutant 465 | -10/Materials | Destroyed 8 combat bots 537 | -10/Materials | Discovered new exit (range 12) 918 | -10/Materials | Discovered new exit (range 13) 1026 | -10/Materials | Discovered new exit (range 7) 1235 | -10/Materials | Discovered new exit (range 5) 1457 | -10/Materials | Discovered new exit (range 13) 1460 | -10/Materials | Central database locked down 1490 | -10/Materials | Entered Mines 1491 | -10/Mines | Assembled infested the area 1514 | -10/Mines | Core integrity fell below 50% 1521 | -10/Mines | Core integrity fell below 20% 1522 | -10/Mines | Destroyed by D-53 Grenadier with Mini Grenade Launcher Last Messages --------------- 01497_ EM Pulse Gun destroyed. 01499_ T-07 Excavator destroyed. 01501_ Chain reaction triggered in Lgt. Deuterium Engine. 01501_ D-53 Grenadier IFF system glitched. 01505_ Ion Engine destroyed. 01507_ Lgt. Treads destroyed. 01507_ T-07 Excavator destroyed. 01511_ EM Pulse Gun destroyed. 01511_ Lgt. Treads destroyed. 01511_ EM Pulse Gun destroyed. 01513_ D-53 Grenadier IFF system glitched. 01515_ System corrupted: Matter fused (-9). 01515_ U-05 Engineer builds a Wall. 01515_ D-53 Grenadier IFF system glitched. 01517_ EM Pulse Gun destroyed. 01519_ U-05 Engineer lays Concrete. 01520_ Sml. Storage Unit destroyed. 01521_ U-05 Engineer builds a Wall. 01522_ Grenade Launcher destroyed. Map ----- +----------------------------------------------------+ | ???????????????????????????????????????? | | ???????????????????????????????????????? | | ???????????????????????????????????????? | | ???????????????????????????????????????? | | ???????????????????????????????????????? | | ???????????????????????????????????????? | | ???????????????????????????????????????? | | ???????????????????????????????????????? | | ???????????????????????????????????????? | | ???????????????????????????????????????? | | ??????????#??#?????????????????????????? | | ??????????# ?????????????????????????? | | ???????? # ?????????????????????????? | | ??????" u ##???????????????????????? | | ??????" # % ???????????????????????? | | ??????? #??????????????????????? | | ???????? k ??????????????????????? | | ???????## d ??????????????????????? | | ???????# ??#???????????????????? | | ???????# d #? #???????????????????? | | ???????# ## ###?????????????????? | | ????????# ##????????????????? | | ????????# #????????????????? | | ????????# #????????????????? | | ????????# ##????????????????? | | ????????## @ ##?????????????????? | | ?????????## #??????????????????? | | ??????????# #??????????????????? | | ??????????# #??????????????????? | | ??????????# ##??????????????????? | | ??????????# ###???????????????????? | | ??????????# ##?????????????????????? | | ??????????# ##??????????????????????? | | ??????????# ???????????????????????? | | ??????????# ???????????????????????? | | ??????????######???????????????????????? | | ???????????????????????????????????????? | | ???????????????????????????????????????? | | ???????????????????????????????????????? | | ???????????????????????????????????????? | | ???????????????????????????????????????? | | | | | | | | | | | | | | | | | | | +----------------------------------------------------+ Best States ------------- Heat Dissipation 25 Energy Generation 10 Energy Capacity 250 Matter Stores 300 Matter Capacity 300 Sight Range 16 Terrain Scan Range 16 Terrain Scan Density 10 Evasion (%) 40 Targeting Accuracy 5 Recoil Reduction 2 Item Schematics ----------------- None Robot Schematics ------------------ None Fabricated ------------ Nothing Repaired ---------- Nothing Alien Tech Used ----------------- None Achievements -------------- None Challenges ------------ None Game ------ Seed ExoskeletonAssembledTelecube Manual? 0 Play Time 00:08:47 Cumulative 300.0 hours Start 2025.06.16 @ 22:46:36 End 2025.06.16 @ 22:54:31 Sessions 1 Manual Loads 0 Difficulty Rogue Special Mode None Game No. 188 Rogue 188 Adventurer 0 Explorer 0 Win Type - Total 4 Types 2/0/1/1/0/0/0/0/0/0 Lore% 82 Gallery% 70 Achievement% 66 Wizard Run 0 Options --------- Layout 2 ASCII 0 Keyboard 1 Movement Vi Keybinds 0 Fullscreen 1 Font 16/Tamsyn Map View 55x47 Zoom Use 0% Tactical HUD 1 Map Filters NONE Filters NONE Steam 0 RUN: 5f2db269-7f99-4199-b48e-9d66aa0928e2